bitfinex/quotes_ETHUSD_20250422
["timestamp","ask_amount","ask_price","bid_price","bid_amount"]
[1745302347164,6.33131996,1579.5,1579.2,4.42483551]
[1745302348871,6.33131996,1579.5,1579.2,10.75703065]
[1745302349370,6.33131996,1579.5,1579.2,4.42483551]
[1745302350965,10.46779795,1579.7,1579.5,0.8116]
[1745302351165,6.33071663,1579.6,1579.5,0.8116]
[1745302351359,6.33071663,1579.6,1579.5,5.464]
[1745302362880,7.37725607,1579.7,1579.5,5.464]
[1745302363090,6.33014444,1579.8,1579.5,5.464]
[1745302363408,98.46663714,1580.0,1579.6,10.03803077]
[1745302363587,98.46663714,1580.0,1579.7,0.7698]
[1745302363901,104.79609445,1580.0,1579.7,0.7698]
[1745302364081,98.46663714,1580.0,1579.7,0.7698]
[1745302365288,104.83870201,1580.0,1579.7,0.7698]
[1745302365605,104.83870201,1580.0,1579.7,7.10008206]
[1745302365914,111.16819293,1580.0,1579.7,0.7698]
[1745302366493,6.32963185,1579.9,1579.7,0.7698]
[1745302367003,6.32963185,1579.9,1579.6,4.41403551]
[1745302367004,12.65942823,1579.9,1579.6,4.41403551]
[1745302367302,19.0314931,1579.9,1579.6,3.7698]
[1745302368302,6.33046907,1579.7,1579.5,5.464]
[1745302371389,6.33071663,1579.6,1579.5,5.464]
[1745302371703,12.66110363,1579.7,1579.5,5.464]
[1745302371907,6.33071663,1579.6,1579.5,5.464]
[1745302372375,6.33046907,1579.7,1579.5,5.464]
[1745302372576,7.67269975,1579.7,1579.5,5.464]
[1745302373611,6.33046907,1579.7,1579.5,5.464]
[1745302378611,12.66108255,1579.7,1579.5,5.464]
[1745302379414,6.33046907,1579.7,1579.5,5.464]
[1745302379910,6.33071663,1579.6,1579.5,5.464]
[1745302381884,6.33046907,1579.7,1579.5,5.464]
[1745302382084,11.22916915,1579.8,1579.5,5.464]
[1745302382085,10.46746915,1579.8,1579.5,5.464]
[1745302382384,6.3304378,1579.7,1579.5,5.464]
[1745302384314,6.33034614,1579.7,1579.5,5.464]
[1745302385015,16.79776293,1579.8,1579.5,5.464]
[1745302385418,6.3303209,1579.7,1579.5,5.464]
[1745302385583,16.79770852,1579.8,1579.5,5.464]
[1745302385916,6.37206487,1579.9,1579.5,5.464]
[1745302385917,6.33039618,1579.7,1579.5,5.464]
[1745302386115,12.66100605,1579.7,1579.5,5.464]
[1745302386519,6.33039618,1579.7,1579.5,5.464]
[1745302387120,12.6609821,1579.7,1579.5,5.464]
[1745302387315,6.33039618,1579.7,1579.5,5.464]
[1745302387518,12.66101485,1579.7,1579.5,5.464]
[1745302387712,6.33039618,1579.7,1579.5,5.464]
[1745302388095,12.66103914,1579.7,1579.5,5.464]
[1745302388303,6.33039618,1579.7,1579.5,5.464]
[1745302388624,6.33071663,1579.6,1579.5,5.464]
[1745302389326,6.33039618,1579.7,1579.5,5.464]
[1745302389527,6.33071663,1579.6,1579.5,5.464]
[1745302393342,7.59644709,1579.7,1579.5,5.464]
[1745302393508,6.33039618,1579.7,1579.5,5.464]
[1745302394240,12.66105517,1579.7,1579.5,5.464]
[1745302394902,6.33071663,1579.6,1579.5,5.464]
[1745302395537,6.33039618,1579.7,1579.5,5.464]
[1745302395839,12.6610239,1579.7,1579.5,5.464]
[1745302396339,6.33039618,1579.7,1579.5,5.464]
[1745302396540,6.33071663,1579.6,1579.5,5.464]
[1745302397915,7.67735257,1579.7,1579.5,5.464]
[1745302398119,14.00797098,1579.7,1579.5,5.464]
[1745302399706,7.67735257,1579.7,1579.6,5.43]
[1745302399909,0.809,1579.4,1579.3,5.43]
[1745302400217,7.14051829,1579.4,1579.3,5.43]
[1745302402151,6.33151829,1579.4,1579.3,5.43]
[1745302412179,6.33272117,1579.1,1579.0,20.869]
[1745302412381,6.33352333,1578.9,1578.8,6.2111]
[1745302412754,6.33352333,1578.9,1578.8,5.391]
[1745302412951,6.33394732,1578.8,1578.6,0.8201]
[1745302413155,6.33394732,1578.8,1578.7,5.392]
[1745302413553,12.66723645,1578.9,1578.7,5.392]
[1745302413751,6.33485724,1578.6,1578.4,6.2121]
[1745302417081,6.33455717,1578.7,1578.4,6.2121]
[1745302417286,12.51161313,1578.8,1578.5,0.8201]
[1745302417287,10.47138948,1578.8,1578.5,0.8201]
[1745302417792,16.80569792,1578.8,1578.5,0.8201]
[1745302417960,12.66837624,1578.8,1578.5,0.8201]
[1745302418149,12.66830333,1578.8,1578.5,0.8201]
[1745302418349,12.66831806,1578.8,1578.5,0.8201]
[1745302419059,6.33435242,1578.7,1578.5,0.8201]
[1745302420159,13.43181783,1578.7,1578.4,5.392]
[1745302420351,6.33475577,1578.6,1578.4,5.392]
[1745302420753,6.33512828,1578.5,1578.4,5.392]
[1745302421853,14.01295146,1578.6,1578.4,5.392]
[1745302422065,7.67794659,1578.6,1578.4,5.392]
[1745302423589,14.01300815,1578.6,1578.4,5.392]
[1745302425117,6.33512828,1578.5,1578.4,5.392]
[1745302425791,8.49923577,1578.5,1578.4,5.392]
[1745302428264,12.63655745,1578.5,1578.4,5.392]
[1745302428471,6.33624012,1578.3,1578.1,5.494]
[1745302428806,6.33633253,1578.2,1578.1,5.494]
[1745302429604,11.23095421,1578.2,1578.1,0.1]
[1745302429802,7.0952389,1577.8,1577.7,5.394]
[1745302430008,2.75484679,1578.2,1577.8,0.7812]
[1745302430182,6.33636666,1578.2,1577.9,4.42634894]
[1745302430503,6.33636666,1578.2,1577.9,10.7636118]
[1745302430705,6.33577158,1578.4,1578.1,0.7812]
[1745302430911,7.18520949,1578.4,1578.1,6.1752]
[1745302431076,6.335946,1578.3,1578.1,6.1752]
[1745302431405,6.33633253,1578.2,1578.1,5.394]
[1745302432420,6.335946,1578.3,1578.1,5.394]
[1745302433912,12.67216348,1578.3,1578.1,5.394]
[1745302434107,14.02432362,1578.3,1578.1,5.394]
[1745302434429,6.33633253,1578.2,1578.1,5.394]
[1745302436697,7.68810614,1578.3,1578.1,5.394]
[1745302437027,6.335946,1578.3,1578.2,0.1372206]
[1745302437319,12.6722434,1578.3,1578.1,5.394]
[1745302437510,6.335946,1578.3,1578.2,0.1372206]
[1745302437816,6.33633253,1578.2,1578.1,5.394]
[1745302438115,6.335946,1578.3,1578.2,0.1372206]
[1745302438286,7.64685836,1578.3,1578.1,5.394]
[1745302438486,7.64685836,1578.3,1578.2,0.1372206]
[1745302438915,7.64685836,1578.3,1578.1,5.394]
[1745302438916,6.33633253,1578.2,1578.1,5.394]
[1745302440344,6.33571348,1578.4,1578.1,5.394]
[1745302440635,12.66977758,1578.6,1578.3,0.8222]
[1745302440801,14.35048751,1578.6,1578.3,0.8222]
[1745302441002,6.33518438,1578.5,1578.3,0.8222]
[1745302442358,8.0154369,1578.6,1578.3,0.8222]
[1745302442847,6.33472697,1578.6,1578.3,0.8222]
[1745302443306,6.33472697,1578.6,1578.3,7.15807992]
[1745302443507,4.13732168,1578.8,1578.4,7.46734894]
[1745302443705,6.33334396,1579.0,1578.7,0.8222]
[1745302443938,7.67726005,1579.0,1578.7,0.8222]
[1745302444165,6.33250677,1579.2,1578.9,3.8222]
[1745302444306,6.33250677,1579.2,1579.0,5.417]
[1745302444502,6.33211299,1579.3,1579.1,0.8222]
[1745302444503,6.33213906,1579.3,1579.1,0.8222]
[1745302444733,6.33232016,1579.2,1579.1,0.8222]
[1745302445439,6.33213906,1579.3,1579.1,0.8222]
[1745302445737,12.6643447,1579.3,1579.1,0.8222]
[1745302445943,12.66441535,1579.3,1579.1,0.8222]
[1745302446309,6.33213906,1579.3,1579.1,0.8222]
[1745302446506,6.33232016,1579.2,1579.1,0.8222]
[1745302447651,11.24110247,1579.6,1579.1,0.8222]
[1745302447819,6.33222781,1579.3,1579.1,0.8222]
[1745302448245,6.33222781,1579.3,1579.2,0.13319399]
[1745302448450,7.10522781,1579.3,1579.2,0.13319399]
[1745302448751,6.33272117,1579.1,1579.0,5.417]
[1745302450259,6.33272117,1579.1,1579.0,5.3778]
[1745302451044,11.7365652,1579.1,1579.0,5.3778]
[1745302451244,12.5453652,1579.1,1579.0,5.3778]
[1745302451428,6.3342426,1578.8,1578.7,5.415]
[1745302452247,6.3342426,1578.8,1578.7,5.54819399]
[1745302454047,12.6675852,1578.9,1578.7,5.54819399]
[1745302454251,6.33370759,1578.9,1578.7,5.54819399]
[1745302454626,6.33392449,1578.8,1578.7,5.54819399]
[1745302457261,6.33323245,1579.0,1578.7,5.54819399]
[1745302457866,12.66665073,1579.0,1578.7,5.54819399]
[1745302458077,6.33359728,1578.9,1578.7,5.54819399]
[1745302459231,12.66748549,1578.9,1578.7,5.54819399]
[1745302459432,6.33359728,1578.9,1578.7,5.415]
[1745302460462,12.667401,1578.9,1578.7,5.415]
[1745302461372,6.33359728,1578.9,1578.7,5.415]
[1745302461866,12.66741539,1578.9,1578.7,5.415]
[1745302462070,6.33359728,1578.9,1578.7,5.415]
[1745302463839,6.33392449,1578.8,1578.7,5.415]
[1745302464342,8.40806332,1579.1,1578.7,5.415]
[1745302464343,6.33324868,1579.0,1578.7,5.415]
[1745302464736,12.66665581,1579.0,1578.7,5.415]
[1745302465571,6.33324868,1579.0,1578.7,5.415]
[1745302465871,6.33292324,1579.1,1578.8,10.73565445]
[1745302466377,6.33292324,1579.1,1578.8,4.40184894]
[1745302466536,6.33316936,1579.0,1578.8,4.40184894]
[1745302466740,12.66661683,1579.0,1578.8,4.40184894]
[1745302467065,6.33297149,1579.1,1578.8,4.40184894]
[1745302467265,12.66601097,1579.1,1578.8,4.40184894]
[1745302467773,12.66602096,1579.1,1578.8,4.40184894]
[1745302468008,6.33325981,1579.0,1578.8,4.40184894]
[1745302468381,6.33352333,1578.9,1578.8,0.7567]
[1745302468684,12.66667575,1579.0,1578.8,0.7567]
[1745302468974,6.33325981,1579.0,1578.9,5.398]
[1745302469171,7.59987901,1579.0,1578.9,5.398]
[1745302475799,6.33293216,1579.1,1578.9,5.398]
[1745302476503,6.33312222,1579.0,1578.9,5.398]
[1745302482920,6.33432571,1578.7,1578.6,5.398]
[1745302500352,6.31732571,1578.7,1578.6,5.398]
[1745302501475,6.31732571,1578.7,1578.2,0.8274]
[1745302501476,6.33569836,1578.4,1578.2,0.8274]
[1745302501840,6.3348969,1578.6,1578.3,6.33591156]
[1745302502041,6.33410831,1578.8,1578.6,0.8274]
[1745302502274,6.33410831,1578.8,1578.6,6.1764]
[1745302502479,6.33377375,1578.9,1578.6,6.1764]
[1745302502780,6.33432571,1578.7,1578.6,6.1764]
[1745302503474,6.33403728,1578.8,1578.6,6.1764]
[1745302505278,0.7829,1579.0,1578.6,6.1764]
[1745302505480,4.46759065,1579.1,1578.6,6.1764]
[1745302505481,6.33368577,1578.9,1578.6,6.1764]
[1745302505673,12.6675832,1578.9,1578.6,6.1764]
[1745302506202,6.33368577,1578.9,1578.6,16.15626672]
[1745302506748,12.66752804,1578.9,1578.6,9.82154894]
[1745302508181,6.33368577,1578.9,1578.6,9.82154894]
[1745302510763,6.33393266,1578.8,1578.6,9.82154894]
[1745302510964,6.33368577,1578.9,1578.6,9.82154894]
[1745302511176,6.33368577,1578.9,1578.6,16.15627299]
[1745302511789,6.33368577,1578.9,1578.6,9.82154894]
[1745302512089,6.33333251,1579.0,1578.6,15.32858265]
[1745302512289,6.33285455,1579.1,1578.8,3.64514894]
[1745302512487,6.33285455,1579.1,1578.8,10.76472929]
[1745302513063,6.33247221,1579.2,1579.0,0.7858]
[1745302513256,6.33247221,1579.2,1579.0,6.1348]
[1745302514395,6.33272117,1579.1,1579.0,6.1348]
[1745302515293,6.33247221,1579.2,1579.0,6.1348]
[1745302515476,12.66508673,1579.2,1579.0,6.1348]
[1745302515671,6.33247221,1579.2,1579.0,6.1348]
[1745302520282,12.66436471,1579.3,1579.0,6.1348]
[1745302520487,6.33216672,1579.3,1579.0,12.46787819]
[1745302520690,12.66442074,1579.3,1579.0,6.1348]
[1745302520869,12.66358314,1579.4,1579.0,16.17623255]
[1745302521069,6.33211587,1579.3,1579.0,9.77994894]
[1745302521497,6.33211587,1579.3,1579.0,16.11295083]
[1745302522767,6.33211587,1579.3,1579.0,15.32715083]
[1745302522967,6.33211587,1579.3,1579.1,0.7858]
[1745302524015,10.46866016,1579.5,1579.1,7.11850638]
[1745302524573,10.46866016,1579.5,1579.1,7.11829913]
[1745302524773,6.33163691,1579.4,1579.1,7.11829913]
[1745302525999,16.80006571,1579.5,1579.1,7.11829913]
[1745302526597,6.33133848,1579.5,1579.1,7.11828379]
[1745302526894,6.3309655,1579.6,1579.3,0.8065]
[1745302527208,6.33111744,1579.5,1579.4,5.348]
[1745302543228,6.33352333,1578.9,1578.8,26.221]
[1745302543587,6.33352333,1578.9,1578.8,5.345]
[1745302546640,6.3341875,1578.8,1578.5,0.8044]
[1745302546800,6.33472697,1578.6,1578.5,5.345]
[1745302547425,7.13512697,1578.6,1578.5,5.345]
[1745302548290,8.48209054,1578.6,1578.5,5.345]
[1745302548705,6.33472697,1578.6,1578.5,5.345]
[1745302549888,7.13512697,1578.6,1578.5,5.345]
[1745302553039,11.27244865,1578.6,1578.5,5.345]
[1745302553644,6.33608047,1578.3,1578.2,5.347]
[1745302555445,6.33571687,1578.4,1578.2,5.347]
[1745302555674,6.33593106,1578.3,1578.2,5.347]
[1745302558252,12.67152029,1578.4,1578.2,5.347]
[1745302558752,6.33593106,1578.3,1578.2,5.347]
[1745302559653,6.33571687,1578.4,1578.2,5.52378735]
[1745302560558,16.80739417,1578.6,1578.3,0.8083]
[1745302560733,6.33530434,1578.5,1578.3,0.8083]
[1745302560923,6.33552965,1578.4,1578.3,0.8083]
[1745302561125,6.33530434,1578.5,1578.3,0.8083]
[1745302561527,12.67072214,1578.5,1578.3,0.8083]
[1745302561726,6.33530434,1578.5,1578.3,0.8083]
[1745302561956,6.33552965,1578.4,1578.3,0.8083]
[1745302562163,6.33530434,1578.5,1578.3,0.8083]
[1745302562324,6.33552965,1578.4,1578.3,0.8083]
[1745302563326,6.33552965,1578.4,1578.2,9.80437983]
[1745302563532,6.33552965,1578.4,1578.2,6.1553]
[1745302564874,6.33593106,1578.3,1578.2,6.1553]
[1745302565057,6.33593106,1578.3,1578.2,5.347]
[1745302570713,9.13391964,1578.3,1578.2,5.347]
[1745302572089,9.13391964,1578.3,1578.2,5.52378735]
[1745302573593,13.27124132,1578.3,1578.2,5.52378735]
[1745302573980,10.47325274,1578.3,1578.2,5.52378735]
[1745302574169,4.13732168,1578.3,1578.2,6.31378735]
[1745302574370,10.47325274,1578.3,1578.2,6.31378735]
[1745302574577,4.13732168,1578.3,1578.2,6.31378735]
[1745302574769,10.47325274,1578.3,1578.2,6.25825456]
[1745302575698,4.13732168,1578.3,1578.2,6.25825456]
[1745302576291,10.47325274,1578.3,1578.2,6.25825456]
[1745302577403,4.13732168,1578.3,1578.2,6.25825456]
[1745302577807,10.47325274,1578.3,1578.2,6.25825456]
[1745302579462,6.33593106,1578.3,1578.2,6.25825456]
[1745302580305,6.44633106,1578.3,1578.2,6.25825456]
[1745302581305,6.44633106,1578.3,1578.2,5.46825456]
[1745302584308,0.1104,1578.3,1578.2,5.46825456]
[1745302585011,6.44633106,1578.3,1578.2,5.46825456]
[1745302590526,0.1104,1578.3,1578.2,7.07245998]
[1745302590695,0.1104,1578.3,1578.2,14.17059251]
[1745302590906,0.1104,1578.3,1578.2,7.83425998]
[1745302592715,0.1104,1578.3,1578.2,17.17059251]
[1745302593425,0.1104,1578.3,1578.2,12.87824898]
[1745302595591,0.1104,1578.3,1578.2,8.46825456]
[1745302595792,6.44633106,1578.3,1578.2,5.46825456]
[1745302596327,7.72452558,1578.3,1578.2,5.46825456]
[1745302596532,8.54872558,1578.3,1578.2,5.46825456]
[1745302601143,12.68474726,1578.3,1578.2,0.12125456]
[1745302601344,7.16003561,1578.0,1577.9,5.348]
[1745302601845,9.12922171,1578.0,1577.9,5.348]
[1745302603052,7.1608389,1577.8,1577.7,20.886]
[1745302603345,6.33834062,1577.7,1577.6,5.348]
[1745302604407,10.47526058,1577.8,1577.6,5.348]
[1745302604408,0.8229,1578.0,1577.7,0.7727]
[1745302604644,6.33694781,1578.1,1577.7,7.11088041]
[1745302604847,6.33694781,1578.1,1577.7,7.11081404]
[1745302605152,6.33729588,1578.0,1577.7,3.7727]
[1745302606653,6.33729588,1578.0,1577.7,10.11100648]
[1745302606830,12.67407915,1578.1,1577.7,10.11100648]
[1745302607658,6.33714615,1578.0,1577.7,10.11100648]
[1745302608148,6.33714615,1578.0,1577.7,3.7727]
[1745302608565,12.67393661,1578.1,1577.7,3.7727]
[1745302608858,12.67393661,1578.1,1577.7,10.11088925]
[1745302609045,6.33713992,1578.0,1577.7,10.11088925]
[1745302609660,6.33713992,1578.0,1577.7,3.7727]
[1745302609858,6.33713992,1578.0,1577.7,10.11103138]
[1745302610164,6.33713992,1578.0,1577.7,3.7727]
[1745302611165,6.33696537,1578.1,1577.7,10.17435734]
[1745302611330,12.67407118,1578.1,1577.8,0.1200532]
[1745302611530,6.33713879,1578.0,1577.8,0.1200532]
[1745302614165,12.6738759,1578.1,1577.8,0.1200532]
[1745302614565,6.33685663,1578.1,1577.8,0.1200532]
[1745302614765,13.49608466,1578.2,1577.8,6.45787091]
[1745302614957,6.33675817,1578.1,1577.8,6.45796944]
[1745302615533,6.33675817,1578.1,1577.8,0.1200532]
[1745302615864,6.33675817,1578.1,1577.8,6.45794357]
[1745302616237,6.33675817,1578.1,1577.9,5.349]
[1745302616763,6.33656705,1578.2,1578.0,0.12319696]
[1745302621081,6.33673404,1578.1,1578.0,0.12319696]
[1745302621379,6.33656705,1578.2,1578.0,0.12319696]
[1745302621767,6.33673404,1578.1,1578.0,0.12319696]
[1745302623348,8.23771325,1578.1,1578.0,0.12319696]
[1745302624291,9.06131325,1578.1,1578.0,0.12319696]
[1745302626293,13.19863493,1578.1,1578.0,0.12319696]
[1745302637910,13.19863493,1578.1,1578.0,0.12319696]
[1745302638364,4.13732168,1578.1,1578.0,0.93559696]
[1745302638674,0.1104,1578.3,1578.1,0.8124]
[1745302639117,0.1104,1578.3,1578.2,0.12785101]
[1745302639416,0.1104,1578.3,1578.1,0.8124]
[1745302639612,0.1104,1578.3,1578.2,0.12785101]
[1745302639772,0.1104,1578.3,1578.1,0.8124]
[1745302639973,0.1104,1578.3,1578.2,0.12785101]
[1745302640210,0.1104,1578.3,1578.1,0.8124]
[1745302640408,0.1104,1578.3,1578.2,0.12785101]
[1745302640705,0.1104,1578.3,1578.1,0.8124]
[1745302640901,0.1104,1578.3,1578.2,0.12785101]
[1745302641308,0.1104,1578.3,1578.1,0.8124]
[1745302641524,0.1104,1578.3,1578.2,0.12785101]
[1745302641870,0.1104,1578.3,1578.2,0.8124]
[1745302642112,0.1104,1578.3,1578.2,0.94025101]
[1745302649389,6.44633106,1578.3,1578.2,0.12785101]
[1745302649707,6.44633106,1578.3,1578.1,3.7748]
[1745302650017,6.44633106,1578.3,1578.2,0.12156292]
[1745302650219,6.44633106,1578.3,1578.1,3.7748]
[1745302650422,6.44633106,1578.3,1578.2,0.12156292]
[1745302650587,6.44633106,1578.3,1578.1,3.7748]
[1745302650588,0.1104,1578.3,1578.1,3.7748]
[1745302650788,0.1104,1578.3,1578.2,0.12156292]
[1745302650990,0.1104,1578.3,1578.1,10.11153261]
[1745302651221,0.1104,1578.3,1578.2,0.12156292]
[1745302651516,0.1104,1578.3,1578.1,3.7748]
[1745302651517,0.1104,1578.3,1578.1,10.11147605]
[1745302651687,0.1104,1578.3,1578.2,0.12156292]
[1745302652217,6.4464413,1578.3,1578.2,0.12156292]
[1745302652421,6.4464413,1578.3,1578.1,3.7748]
[1745302652608,6.4464413,1578.3,1578.2,0.12156292]
[1745302652782,6.4464413,1578.3,1578.1,3.7748]
[1745302652982,6.4464413,1578.3,1578.2,0.12156292]
[1745302653184,6.4464413,1578.3,1578.1,3.7748]
[1745302653383,6.4464413,1578.3,1578.2,0.12156292]
[1745302653722,0.1104,1578.3,1578.1,3.7748]
[1745302654020,0.1104,1578.3,1578.2,0.12156292]
[1745302654203,0.1104,1578.3,1578.1,3.7748]
[1745302654521,6.44647819,1578.3,1578.2,0.12156292]
[1745302654885,6.44647819,1578.3,1578.1,3.7748]
[1745302655087,0.1104,1578.3,1578.2,0.12156292]
[1745302655423,0.1104,1578.3,1578.1,3.7748]
[1745302655732,0.1104,1578.3,1578.2,0.12156292]
[1745302656086,0.1104,1578.3,1578.1,16.51110179]
[1745302656393,0.1104,1578.3,1578.2,0.12156292]
[1745302656723,0.1104,1578.3,1578.1,10.1746011]
[1745302656925,0.1104,1578.3,1578.2,0.12156292]
[1745302657335,0.1104,1578.3,1578.2,5.346]
[1745302657633,0.1104,1578.3,1578.2,5.46756292]
[1745302668561,6.44633106,1578.3,1578.2,5.46756292]
[1745302670461,8.59395856,1578.3,1578.2,0.12156292]
[1745302670859,6.33686307,1578.1,1577.9,6.95034203]
[1745302671165,6.33686307,1578.1,1577.9,5.346]
[1745302674672,12.67317271,1578.2,1577.9,5.346]
[1745302674881,6.33673894,1578.1,1577.9,5.346]
[1745302675180,7.23699292,1578.3,1577.9,15.33401828]
[1745302675327,6.44659292,1578.3,1577.9,15.33401828]
[1745302675533,12.78292328,1578.3,1578.0,0.7632]
[1745302675843,6.33634116,1578.2,1578.0,0.7632]
[1745302676369,6.44659292,1578.3,1578.0,0.7632]
[1745302676931,12.78281331,1578.3,1578.0,0.7632]
[1745302677136,6.44659292,1578.3,1578.1,0.12420342]
[1745302678068,0.1104,1578.3,1578.1,6.46088915]
[1745302678376,6.44638621,1578.3,1578.1,3.77486943]
[1745302678570,6.44638621,1578.3,1578.1,0.12420342]
[1745302680279,6.44638621,1578.3,1578.2,5.347]
[1745302680879,6.44638621,1578.3,1578.2,5.47120342]
[1745302681271,7.19918621,1578.3,1578.2,5.47120342]
[1745302681778,6.44638621,1578.3,1578.2,5.47120342]
[1745302682768,7.20620965,1578.3,1578.2,5.47120342]
[1745302683090,7.95900965,1578.3,1578.2,0.12420342]
[1745302683269,7.09033723,1577.9,1577.8,26.233]
[1745302685681,6.33753723,1577.9,1577.8,26.233]
[1745302687150,6.33732375,1578.0,1577.8,26.233]
[1745302687582,6.33753723,1577.9,1577.8,26.233]
[1745302688160,12.67474275,1578.0,1577.8,26.233]
[1745302688360,6.33732375,1578.0,1577.8,26.233]
[1745302688690,6.33695497,1578.1,1577.8,26.233]
[1745302689484,6.33714792,1578.0,1577.8,26.233]
[1745302692794,12.67396889,1578.1,1577.8,26.233]
[1745302693400,6.33716026,1578.0,1577.8,26.233]
[1745302693788,6.33695497,1578.1,1577.8,26.233]
[1745302693997,12.67398276,1578.1,1577.8,26.233]
[1745302694593,6.33720979,1578.0,1577.8,26.233]
[1745302695015,6.33695497,1578.1,1577.8,26.233]
[1745302695506,12.67396841,1578.1,1577.8,26.233]
[1745302695713,6.33718348,1578.0,1577.8,26.233]
[1745302697210,7.19913166,1578.3,1578.1,6.33648879]
[1745302697211,0.1104,1578.3,1578.1,6.33648879]
[1745302697385,0.1104,1578.3,1578.2,5.346]
[1745302699203,6.44633106,1578.3,1578.2,5.346]
[1745302700108,0.1104,1578.3,1578.2,5.346]
[1745302702018,0.1104,1578.3,1578.2,5.49028]
[1745302704320,0.9295,1578.3,1578.2,5.49028]
[1745302704487,7.26543106,1578.3,1578.2,5.49028]
[1745302707815,6.97017678,1578.3,1578.2,5.49028]
[1745302710431,6.33593106,1578.3,1578.2,5.49028]
[1745302711093,7.13623106,1578.3,1578.2,5.49028]
[1745302714735,6.33593106,1578.3,1578.2,5.49028]
[1745302715734,6.33569487,1578.4,1578.2,6.31008]
[1745302716841,12.67153454,1578.4,1578.2,6.31008]
[1745302717043,6.33569487,1578.4,1578.2,6.31008]
[1745302717656,12.67162337,1578.4,1578.2,6.31008]
[1745302717959,12.67162337,1578.4,1578.2,5.49028]
[1745302717960,6.33593106,1578.3,1578.2,5.49028]
[1745302718623,7.13623106,1578.3,1578.2,5.49028]
[1745302719349,7.13623106,1578.3,1578.2,0.14428]
[1745302721751,11.27355274,1578.3,1578.2,0.14428]
[1745302722551,7.09783561,1578.0,1577.9,5.345]
[1745302722719,8.44131164,1578.0,1577.9,5.345]
[1745302727744,6.33847057,1577.7,1577.6,5.345]
[1745302734004,7.10217057,1577.7,1577.6,5.345]
[1745302734496,6.33990515,1577.4,1577.3,5.346]
[1745302736869,7.10360515,1577.4,1577.3,5.346]
[1745302738003,6.33990515,1577.4,1577.3,5.346]
[1745302741975,6.33933649,1577.5,1577.3,5.346]
[1745302742177,6.33972565,1577.4,1577.3,5.346]
[1745302743633,6.33933649,1577.5,1577.3,5.346]
[1745302744027,12.67707171,1577.7,1577.4,0.7895]
[1745302744223,12.67709043,1577.7,1577.4,0.7895]
[1745302744431,6.33839063,1577.7,1577.4,0.7895]
[1745302744805,6.33839063,1577.7,1577.4,4.44016601]
[1745302745042,6.3381601,1577.8,1577.6,0.7895]
[1745302745210,6.3381601,1577.8,1577.7,5.347]
[1745302748847,7.10093595,1578.0,1577.7,5.347]
[1745302748848,6.33730687,1578.0,1577.7,5.347]
[1745302749019,6.33693777,1578.1,1577.9,0.7591]
[1745302749346,16.80975768,1578.3,1577.9,0.7591]
[1745302749643,10.47347632,1578.3,1577.9,0.7591]
[1745302749829,6.33634488,1578.2,1577.9,0.7591]
[1745302750428,6.33675958,1578.1,1577.9,0.7591]
[1745302750630,6.33713561,1578.0,1577.8,3.7591]
[1745302751255,6.33713561,1578.0,1577.8,0.7591]
[1745302751942,6.33675958,1578.1,1577.8,0.7591]
[1745302753172,6.33656618,1578.2,1577.8,4.40976601]
[1745302753379,6.33656618,1578.2,1577.9,0.7591]
[1745302753380,6.33649211,1578.2,1577.9,0.7591]
[1745302754971,10.47347236,1578.3,1577.9,0.7591]
[1745302755187,6.33634765,1578.2,1577.9,0.7591]
[1745302757880,6.33673866,1578.1,1577.9,0.7591]
[1745302759075,12.67303625,1578.2,1577.9,0.7591]
[1745302759275,6.33634765,1578.2,1577.9,0.7591]
[1745302759488,6.33634765,1578.2,1577.9,7.09660206]
[1745302759909,6.33634765,1578.2,1577.9,0.7591]
[1745302761502,6.33618263,1578.3,1577.9,7.0965731]
[1745302761722,6.33634241,1578.2,1577.9,7.0965731]
[1745302762505,6.33618263,1578.3,1577.9,7.09642748]
[1745302763004,6.33644676,1578.2,1577.9,7.09642748]
[1745302763402,12.67248766,1578.3,1577.9,7.09642748]
[1745302764116,6.33618263,1578.3,1577.9,7.09642748]
[1745302764417,6.3363406,1578.2,1577.9,3.7591]
[1745302764786,6.3363406,1578.2,1577.9,10.0966157]
[1745302765017,6.3363406,1578.2,1577.9,10.15998369]
[1745302765195,6.3363406,1578.2,1577.9,10.0966157]
[1745302765398,6.3363406,1578.2,1577.9,3.7591]
[1745302766113,12.67304339,1578.2,1577.9,3.7591]
[1745302766423,6.33674669,1578.1,1577.9,3.7591]
[1745302766823,6.33713561,1578.0,1577.9,3.7591]
[1745302766993,6.33674669,1578.1,1577.9,3.7591]
[1745302768734,6.33657467,1578.2,1577.9,3.7591]
[1745302769033,6.33657467,1578.2,1577.9,10.09661023]
[1745302769835,6.33618939,1578.3,1577.9,15.67482832]
[1745302770127,6.33621957,1578.3,1578.0,4.40526601]
[1745302770326,6.33621957,1578.3,1578.1,5.344]
[1745302770505,6.33621957,1578.3,1578.2,0.7546]
[1745302774007,6.33621957,1578.3,1578.2,0.74085554]
[1745302775123,6.33567224,1578.4,1578.2,0.74085554]
[1745302776739,6.33593106,1578.3,1578.2,0.74085554]
[1745302777032,6.33633253,1578.2,1578.1,5.344]
[1745302777730,0.8119,1578.2,1577.7,3.65066601]
[1745302777905,6.3379389,1577.8,1577.7,5.343]
[1745302784635,6.33753723,1577.9,1577.7,5.343]
[1745302785516,6.33738887,1578.0,1577.7,5.343]
[1745302786015,12.67485842,1578.0,1577.7,5.343]
[1745302787141,6.33768843,1577.9,1577.7,5.343]
[1745302789953,6.33738887,1578.0,1577.7,11.68131704]
[1745302790160,6.33738887,1578.0,1577.8,0.8071]
[1745302791056,6.33753723,1577.9,1577.8,0.8071]
[1745302794966,6.33753723,1577.9,1577.8,6.1511]
[1745302798165,6.33753723,1577.9,1577.8,5.344]
[1745302800276,6.33738887,1578.0,1577.8,5.344]
[1745302800573,6.33738887,1578.0,1577.8,6.1747]
[1745302801173,6.33753723,1577.9,1577.8,6.1747]
[1745302802086,6.33738887,1578.0,1577.8,6.1747]
[1745302804056,6.33720397,1578.0,1577.8,9.82536601]
[1745302804708,6.33691581,1578.1,1577.8,9.82536601]
[1745302804709,6.33537476,1578.5,1578.1,6.33661273]
[1745302804905,12.67084606,1578.5,1578.3,0.8307]
[1745302805193,6.33552965,1578.4,1578.3,0.8307]